[Event "*** Titled Tuesday Blitz"]
[Site "Chess.com"]
[Date "2021.04.06"]
[Round "3"]
[White "morte-negra"]
[Black "FeketeBarika"]
[Result "0-1"]
[WhiteElo "1937"]
[BlackElo "2282"]
[TimeControl "180+1"]
[EndTime "10:25:16 PDT"]
[Termination "FeketeBarika won by resignation"]

1. e4 {[%clk 0:03:00.9]} 1... e6 {[%clk 0:02:59.5]} 2. d4 {[%clk 0:02:55.9]}
2... d5 {[%clk 0:03:00.4]} 3. e5 {[%clk 0:02:55.2]} 3... c5 {[%clk 0:02:59]} 4.
c3 {[%clk 0:02:55]} 4... Nc6 {[%clk 0:02:53.1]} 5. Nf3 {[%clk 0:02:54]} 5... Bd7
{[%clk 0:02:52.6]} 6. Be2 {[%clk 0:02:46.1]} 6... Nh6 {[%clk 0:02:52]} 7. Na3
{[%clk 0:02:45]} 7... f6 {[%clk 0:02:51.2]} 8. O-O {[%clk 0:02:42.8]} 8... Nf7
{[%clk 0:02:49.7]} 9. exf6 {[%clk 0:02:35.6]} 9... Qxf6 {[%clk 0:02:44.3]} 10.
dxc5 {[%clk 0:02:30.3]} 10... Bxc5 {[%clk 0:02:43.3]} 11. Nc2 {[%clk 0:02:28.4]}
11... O-O {[%clk 0:02:42.5]} 12. Be3 {[%clk 0:02:20.7]} 12... Bxe3 {[%clk
0:02:41]} 13. fxe3 {[%clk 0:02:19.3]} 13... Rad8 {[%clk 0:02:36]} 14. Ncd4
{[%clk 0:02:16.7]} 14... Nce5 {[%clk 0:02:32.8]} 15. Qc2 {[%clk 0:02:01.3]}
15... Ng4 {[%clk 0:02:27.4]} 16. e4 {[%clk 0:01:54.8]} 16... Ne3 {[%clk
0:02:26.1]} 17. Qd3 {[%clk 0:01:48.9]} 17... Nxf1 {[%clk 0:02:25.5]} 18. exd5
{[%clk 0:01:41.1]} 18... e5 {[%clk 0:02:16.9]} 19. Nc2 {[%clk 0:01:18.8]} 19...
Bf5 {[%clk 0:02:15.6]} 0-1

[Event "*** Titled Tuesday Blitz"]
[Site "Chess.com"]
[Date "2021.04.06"]
[Round "3"]
[White "YoreDea"]
[Black "DrVelja"]
[Result "1-0"]
[WhiteElo "2635"]
[BlackElo "2863"]
[TimeControl "180+1"]
[EndTime "10:25:48 PDT"]
[Termination "YoreDea won by resignation"]

1. e4 {[%clk 0:02:58.3]} 1... c6 {[%clk 0:03:00.4]} 2. d4 {[%clk 0:02:57.4]}
2... d5 {[%clk 0:03:01.3]} 3. e5 {[%clk 0:02:57.6]} 3... Bf5 {[%clk 0:03:00.8]}
4. Nc3 {[%clk 0:02:57.8]} 4... e6 {[%clk 0:02:58.2]} 5. g4 {[%clk 0:02:58.1]}
5... Bg6 {[%clk 0:02:58.8]} 6. h4 {[%clk 0:02:53.3]} 6... h5 {[%clk 0:02:57.8]}
7. Nge2 {[%clk 0:02:33]} 7... c5 {[%clk 0:02:57.5]} 8. Nf4 {[%clk 0:02:32.1]}
8... Nc6 {[%clk 0:02:57.8]} 9. Nxg6 {[%clk 0:01:54.9]} 9... fxg6 {[%clk
0:02:58.7]} 10. Ne2 {[%clk 0:01:55.4]} 10... cxd4 {[%clk 0:02:25.4]} 11. Nxd4
{[%clk 0:01:51.9]} 11... Nxd4 {[%clk 0:02:18.2]} 12. Qxd4 {[%clk 0:01:49.8]}
12... Qb6 {[%clk 0:02:12.9]} 13. Qxb6 {[%clk 0:01:34.5]} 13... axb6 {[%clk
0:02:13.8]} 14. Bb5+ {[%clk 0:01:35]} 14... Kf7 {[%clk 0:02:14.2]} 15. g5 {[%clk
0:01:35.2]} 15... Bc5 {[%clk 0:02:10.7]} 16. c3 {[%clk 0:01:30.7]} 16... Be7
{[%clk 0:01:55.1]} 17. Rh3 {[%clk 0:01:27.4]} 17... Bd8 {[%clk 0:01:55.6]} 18.
Rf3+ {[%clk 0:01:27.2]} 18... Ke7 {[%clk 0:01:56.5]} 19. a4 {[%clk 0:01:14.4]}
19... Bc7 {[%clk 0:01:55.7]} 20. c4 {[%clk 0:01:13.7]} 20... Rf8 {[%clk
0:01:48.3]} 21. Rd3 {[%clk 0:01:08.4]} 21... dxc4 {[%clk 0:01:28]} 22. Rd7+
{[%clk 0:01:07.1]} 1-0

[Event "*** Titled Tuesday Blitz"]
[Site "Chess.com"]
[Date "2021.04.06"]
[Round "3"]
[White "1g41-0"]
[Black "Rytenko_V"]
[Result "0-1"]
[WhiteElo "2545"]
[BlackElo "2385"]
[TimeControl "180+1"]
[EndTime "10:25:57 PDT"]
[Termination "Rytenko_V won by resignation"]

1. d4 {[%clk 0:03:00.9]} 1... d5 {[%clk 0:02:59.9]} 2. Nf3 {[%clk 0:02:57.6]}
2... Nf6 {[%clk 0:02:59.6]} 3. e3 {[%clk 0:02:57.2]} 3... Bg4 {[%clk 0:02:59.9]}
4. c4 {[%clk 0:02:56]} 4... c6 {[%clk 0:02:59.8]} 5. Qb3 {[%clk 0:02:53.3]} 5...
Qb6 {[%clk 0:02:59.8]} 6. Qxb6 {[%clk 0:02:53.4]} 6... axb6 {[%clk 0:02:59.3]}
7. cxd5 {[%clk 0:02:54.3]} 7... Nxd5 {[%clk 0:02:51.4]} 8. Bd2 {[%clk
0:02:51.8]} 8... Nd7 {[%clk 0:02:46.3]} 9. e4 {[%clk 0:02:50.2]} 9... N5f6
{[%clk 0:02:43.1]} 10. Nc3 {[%clk 0:02:50.7]} 10... e6 {[%clk 0:02:37]} 11. h3
{[%clk 0:02:42]} 11... Bh5 {[%clk 0:02:36.7]} 12. Bd3 {[%clk 0:02:05.4]} 12...
Bb4 {[%clk 0:02:27.9]} 13. Nh4 {[%clk 0:01:53.5]} 13... O-O {[%clk 0:02:09]} 14.
g4 {[%clk 0:01:53.1]} 14... Bg6 {[%clk 0:02:09.5]} 15. Nxg6 {[%clk 0:01:53.7]}
15... hxg6 {[%clk 0:02:09.6]} 16. f3 {[%clk 0:01:50.6]} 16... e5 {[%clk
0:02:03.3]} 17. Ne2 {[%clk 0:01:38.4]} 17... Bd6 {[%clk 0:01:39.6]} 18. f4
{[%clk 0:01:35.4]} 18... exf4 {[%clk 0:01:24.8]} 19. e5 {[%clk 0:01:22]} 19...
Bxe5 {[%clk 0:01:20.2]} 20. dxe5 {[%clk 0:01:21.7]} 20... Nxe5 {[%clk
0:01:20.6]} 21. Nxf4 {[%clk 0:01:21.4]} 21... g5 {[%clk 0:01:09.2]} 22. Bc3
{[%clk 0:01:17.8]} 22... gxf4 {[%clk 0:01:08.8]} 0-1

[Event "*** Titled Tuesday Blitz"]
[Site "Chess.com"]
[Date "2021.04.06"]
[Round "3"]
[White "MarcoRiehle"]
[Black "FairChess_on_YouTube"]
[Result "0-1"]
[WhiteElo "2675"]
[BlackElo "3006"]
[TimeControl "180+1"]
[EndTime "10:26:00 PDT"]
[Termination "FairChess_on_YouTube won by resignation"]

1. e4 {[%clk 0:03:00.9]} 1... c5 {[%clk 0:02:59.6]} 2. a3 {[%clk 0:03:00.3]}
2... g6 {[%clk 0:02:58.1]} 3. h4 {[%clk 0:03:00.2]} 3... Nf6 {[%clk 0:02:55.9]}
4. e5 {[%clk 0:03:00]} 4... Nh5 {[%clk 0:02:56]} 5. Nf3 {[%clk 0:02:51.2]} 5...
Nc6 {[%clk 0:02:50.2]} 6. Nc3 {[%clk 0:02:48.9]} 6... Bg7 {[%clk 0:02:33.3]} 7.
g4 {[%clk 0:02:47.8]} 7... Nf4 {[%clk 0:02:33]} 8. d4 {[%clk 0:02:46.7]} 8...
cxd4 {[%clk 0:02:30.6]} 9. Bxf4 {[%clk 0:02:45.5]} 9... dxc3 {[%clk 0:02:29.8]}
10. b4 {[%clk 0:02:40.9]} 10... d6 {[%clk 0:02:25.3]} 11. exd6 {[%clk
0:02:35.8]} 11... Bxg4 {[%clk 0:02:24.6]} 12. b5 {[%clk 0:02:28.6]} 12... Nd4
{[%clk 0:02:15.8]} 13. Bg2 {[%clk 0:02:26.3]} 13... O-O {[%clk 0:02:08.5]} 14.
O-O {[%clk 0:02:17.1]} 14... e5 {[%clk 0:02:03.7]} 15. Bg3 {[%clk 0:02:01.1]}
15... Qf6 {[%clk 0:01:49.6]} 16. Bxe5 {[%clk 0:01:47.1]} 16... Nxf3+ {[%clk
0:01:47.7]} 17. Bxf3 {[%clk 0:01:46.7]} 17... Qxf3 {[%clk 0:01:46.3]} 18. Qxf3
{[%clk 0:01:46.3]} 18... Bxf3 {[%clk 0:01:46]} 19. Bg3 {[%clk 0:01:40]} 19... f5
{[%clk 0:01:44.7]} 20. Bf4 {[%clk 0:01:39.3]} 20... Rad8 {[%clk 0:01:36.1]} 21.
a4 {[%clk 0:01:34.8]} 21... Rfe8 {[%clk 0:01:32.5]} 22. Rfe1 {[%clk 0:01:33.7]}
22... Rxe1+ {[%clk 0:01:26.3]} 23. Rxe1 {[%clk 0:01:34.6]} 23... Bf8 {[%clk
0:01:24.1]} 24. Re3 {[%clk 0:01:32.5]} 24... Be4 {[%clk 0:01:22]} 25. Rxc3
{[%clk 0:01:24.7]} 25... Bxd6 {[%clk 0:01:19.7]} 26. Bxd6 {[%clk 0:01:24.4]}
26... Rxd6 {[%clk 0:01:19.8]} 27. f3 {[%clk 0:01:25.3]} 27... Rd1+ {[%clk
0:01:18]} 28. Kf2 {[%clk 0:01:23.2]} 28... Rd2+ {[%clk 0:01:18.9]} 29. Ke3
{[%clk 0:01:23.5]} 29... Rxc2 {[%clk 0:01:19.5]} 0-1

[Event "*** Titled Tuesday Blitz"]
[Site "Chess.com"]
[Date "2021.04.06"]
[Round "3"]
[White "kleopl"]
[Black "Zarikovs1999"]
[Result "1-0"]
[WhiteElo "2554"]
[BlackElo "2357"]
[TimeControl "180+1"]
[EndTime "10:26:01 PDT"]
[Termination "kleopl won by resignation"]

1. c4 {[%clk 0:03:00.9]} 1... c5 {[%clk 0:02:42]} 2. Nf3 {[%clk 0:02:59.8]} 2...
Nf6 {[%clk 0:02:42.9]} 3. Nc3 {[%clk 0:02:59.5]} 3... Nc6 {[%clk 0:02:41.9]} 4.
g3 {[%clk 0:02:59.1]} 4... g6 {[%clk 0:02:41.5]} 5. d4 {[%clk 0:02:58.7]} 5...
Bg7 {[%clk 0:02:42.4]} 6. d5 {[%clk 0:02:58]} 6... Nb8 {[%clk 0:02:42.9]} 7. e4
{[%clk 0:02:56.9]} 7... d6 {[%clk 0:02:43.2]} 8. h3 {[%clk 0:02:54.7]} 8... O-O
{[%clk 0:02:43.4]} 9. Bg2 {[%clk 0:02:54.7]} 9... e6 {[%clk 0:02:43.8]} 10. O-O
{[%clk 0:02:54.3]} 10... exd5 {[%clk 0:02:44.2]} 11. cxd5 {[%clk 0:02:53.5]}
11... Re8 {[%clk 0:02:44.5]} 12. Re1 {[%clk 0:02:53]} 12... a6 {[%clk
0:02:42.9]} 13. a4 {[%clk 0:02:52.5]} 13... b6 {[%clk 0:02:32.1]} 14. Bf4 {[%clk
0:02:44.7]} 14... Ra7 {[%clk 0:02:30.4]} 15. e5 {[%clk 0:02:39.5]} 15... dxe5
{[%clk 0:02:21.4]} 16. Nxe5 {[%clk 0:02:37.2]} 16... Nh5 {[%clk 0:02:20]} 17.
Nd3 {[%clk 0:02:06.7]} 17... Nxf4 {[%clk 0:02:06.6]} 18. Rxe8+ {[%clk
0:02:03.6]} 18... Qxe8 {[%clk 0:02:05.4]} 19. Nxf4 {[%clk 0:02:04.3]} 19... Bf5
{[%clk 0:01:53]} 20. Qd2 {[%clk 0:01:36.3]} 20... Qd8 {[%clk 0:01:43.4]} 21. Re1
{[%clk 0:01:32.9]} 21... Nd7 {[%clk 0:01:41.5]} 22. g4 {[%clk 0:01:31]} 22...
Qg5 {[%clk 0:01:30.3]} 23. Re8+ {[%clk 0:01:24.3]} 23... Nf8 {[%clk 0:01:28.5]}
24. gxf5 {[%clk 0:01:20.6]} 24... Bxc3 {[%clk 0:01:22.7]} 25. bxc3 {[%clk
0:01:11.9]} 1-0

[Event "*** Titled Tuesday Blitz"]
[Site "Chess.com"]
[Date "2021.04.06"]
[Round "3"]
[White "Lector118"]
[Black "Kapibara_Warri0r"]
[Result "0-1"]
[WhiteElo "2427"]
[BlackElo "2246"]
[TimeControl "180+1"]
[EndTime "10:26:07 PDT"]
[Termination "Kapibara_Warri0r won by resignation"]

1. d4 {[%clk 0:00:56.9]} 1... Nf6 {[%clk 0:02:58.3]} 2. c4 {[%clk 0:00:38]} 2...
e6 {[%clk 0:02:58]} 3. g3 {[%clk 0:00:37.7]} 3... d5 {[%clk 0:02:56.3]} 4. Bg2
{[%clk 0:00:37.7]} 4... c5 {[%clk 0:02:54.5]} 5. Nf3 {[%clk 0:00:37.2]} 5... Nc6
{[%clk 0:02:53]} 6. cxd5 {[%clk 0:00:36.5]} 6... exd5 {[%clk 0:02:53]} 7. O-O
{[%clk 0:00:36.9]} 7... a6 {[%clk 0:02:51]} 8. Nc3 {[%clk 0:00:37.2]} 8... Be6
{[%clk 0:02:47.3]} 9. Bg5 {[%clk 0:00:37.3]} 9... Be7 {[%clk 0:02:43.7]} 10.
Bxf6 {[%clk 0:00:37]} 10... Bxf6 {[%clk 0:02:41.4]} 11. dxc5 {[%clk 0:00:37.5]}
11... O-O {[%clk 0:02:40.9]} 12. Rc1 {[%clk 0:00:35.8]} 12... d4 {[%clk
0:02:39]} 13. Ne4 {[%clk 0:00:34.8]} 13... Be7 {[%clk 0:02:35.9]} 14. Ne1 {[%clk
0:00:33.8]} 14... Bxa2 {[%clk 0:02:33.3]} 15. Nd3 {[%clk 0:00:31]} 15... Bd5
{[%clk 0:02:31.4]} 16. b4 {[%clk 0:00:30.3]} 16... Na7 {[%clk 0:02:22.4]} 17.
Qd2 {[%clk 0:00:26.4]} 17... Nb5 {[%clk 0:02:16]} 18. Qf4 {[%clk 0:00:25.4]}
18... Bxe4 {[%clk 0:02:12.4]} 19. Bxe4 {[%clk 0:00:25.3]} 19... Bg5 {[%clk
0:02:12.3]} 20. Qf5 {[%clk 0:00:23.9]} 20... g6 {[%clk 0:02:12.4]} 21. Qh3
{[%clk 0:00:23.7]} 21... Bxc1 {[%clk 0:02:11.9]} 22. Rxc1 {[%clk 0:00:24.6]}
22... Qe7 {[%clk 0:02:07.9]} 23. Qg2 {[%clk 0:00:24.6]} 23... Nc3 {[%clk
0:02:05.4]} 24. Bxb7 {[%clk 0:00:23.9]} 24... Nxe2+ {[%clk 0:02:05.4]} 25. Kh1
{[%clk 0:00:24.6]} 25... Nxc1 {[%clk 0:02:04.4]} 0-1

[Event "*** Titled Tuesday Blitz"]
[Site "Chess.com"]
[Date "2021.04.06"]
[Round "3"]
[White "Loy_Konstantin"]
[Black "WonderChampion"]
[Result "1-0"]
[WhiteElo "2340"]
[BlackElo "2120"]
[TimeControl "180+1"]
[EndTime "10:26:11 PDT"]
[Termination "Loy_Konstantin won by resignation"]

1. e4 {[%clk 0:03:00.9]} 1... c5 {[%clk 0:02:59]} 2. Nf3 {[%clk 0:03:00.9]} 2...
g6 {[%clk 0:02:58.2]} 3. d4 {[%clk 0:03:00.5]} 3... cxd4 {[%clk 0:02:58.3]} 4.
Nxd4 {[%clk 0:03:01.4]} 4... Nc6 {[%clk 0:02:57.9]} 5. Nc3 {[%clk 0:03:00.6]}
5... Bg7 {[%clk 0:02:58.3]} 6. Be3 {[%clk 0:03:01.2]} 6... Nf6 {[%clk
0:02:57.3]} 7. Bc4 {[%clk 0:03:01.5]} 7... O-O {[%clk 0:02:56.6]} 8. Bb3 {[%clk
0:03:01.9]} 8... d6 {[%clk 0:02:55.9]} 9. f3 {[%clk 0:03:01.7]} 9... Bd7 {[%clk
0:02:53.1]} 10. h4 {[%clk 0:03:02.1]} 10... Nxd4 {[%clk 0:02:47.8]} 11. Bxd4
{[%clk 0:03:02]} 11... a6 {[%clk 0:02:48.7]} 12. h5 {[%clk 0:03:00.7]} 12... b5
{[%clk 0:02:48.2]} 13. hxg6 {[%clk 0:02:59.2]} 13... hxg6 {[%clk 0:02:48]} 14.
Qd2 {[%clk 0:02:53.2]} 14... e5 {[%clk 0:02:45.3]} 15. Be3 {[%clk 0:02:52]}
15... Be6 {[%clk 0:02:44]} 16. Bh6 {[%clk 0:02:42.8]} 16... Nh5 {[%clk
0:02:35.4]} 17. g4 {[%clk 0:02:23.1]} 17... Nf4 {[%clk 0:02:24.6]} 18. O-O-O
{[%clk 0:02:21.8]} 18... a5 {[%clk 0:02:22.8]} 19. Bd5 {[%clk 0:02:18.9]} 19...
Bxd5 {[%clk 0:02:19]} 20. Nxd5 {[%clk 0:02:14.7]} 20... Bxh6 {[%clk 0:02:10.9]}
21. Rxh6 {[%clk 0:02:07.7]} 21... Nxd5 {[%clk 0:02:08.3]} 22. Rh8+ {[%clk
0:01:08.6]} 22... Kxh8 {[%clk 0:01:59.1]} 23. Qh6+ {[%clk 0:01:07.6]} 23... Kg8
{[%clk 0:01:58.6]} 24. Rh1 {[%clk 0:01:08]} 24... Qg5+ {[%clk 0:01:35.4]} 25.
Qxg5 {[%clk 0:01:06.1]} 25... Rfc8 {[%clk 0:01:30.6]} 26. exd5 {[%clk
0:01:02.8]} 26... Kf8 {[%clk 0:01:25.5]} 27. Qf6 {[%clk 0:01:02.1]} 1-0

[Event "*** Titled Tuesday Blitz"]
[Site "Chess.com"]
[Date "2021.04.06"]
[Round "3"]
[White "Niktlt"]
[Black "exoticprincess"]
[Result "1/2-1/2"]
[WhiteElo "2582"]
[BlackElo "2921"]
[TimeControl "180+1"]
[EndTime "10:26:12 PDT"]
[Termination "Game drawn by repetition"]

1. e4 {[%clk 0:02:59.3]} 1... c6 {[%clk 0:02:58.4]} 2. d4 {[%clk 0:02:59.2]}
2... d5 {[%clk 0:02:59.3]} 3. exd5 {[%clk 0:02:59.5]} 3... cxd5 {[%clk
0:02:59.3]} 4. Bd3 {[%clk 0:02:59.6]} 4... Nc6 {[%clk 0:02:59.9]} 5. c3 {[%clk
0:02:59.5]} 5... Nf6 {[%clk 0:03:00.4]} 6. Bf4 {[%clk 0:02:59.6]} 6... Bg4
{[%clk 0:03:00.8]} 7. Qb3 {[%clk 0:02:59.4]} 7... Qc8 {[%clk 0:03:01.2]} 8. Nd2
{[%clk 0:02:59.3]} 8... e6 {[%clk 0:03:01.6]} 9. Ngf3 {[%clk 0:02:59.4]} 9...
Bh5 {[%clk 0:03:01]} 10. O-O {[%clk 0:02:56.3]} 10... Be7 {[%clk 0:03:01.4]} 11.
Rfe1 {[%clk 0:02:53.8]} 11... Bg6 {[%clk 0:03:00.4]} 12. Bxg6 {[%clk 0:02:53.5]}
12... hxg6 {[%clk 0:03:01.3]} 13. h3 {[%clk 0:02:53.8]} 13... O-O {[%clk
0:03:01.3]} 14. Ne5 {[%clk 0:02:54.1]} 14... Nxe5 {[%clk 0:03:01]} 15. Bxe5
{[%clk 0:02:55]} 15... Nd7 {[%clk 0:03:01.9]} 16. Bg3 {[%clk 0:02:54.9]} 16...
Qc6 {[%clk 0:03:02]} 17. a4 {[%clk 0:02:55]} 17... Rfc8 {[%clk 0:02:59.7]} 18.
Nf3 {[%clk 0:02:55.2]} 18... Bd6 {[%clk 0:02:43.1]} 19. Bxd6 {[%clk 0:02:52.8]}
19... Qxd6 {[%clk 0:02:44]} 20. Ne5 {[%clk 0:02:53.2]} 20... Rc7 {[%clk
0:02:39.3]} 21. Nxd7 {[%clk 0:02:51.9]} 21... Qxd7 {[%clk 0:02:40.2]} 22. Qb5
{[%clk 0:02:45.3]} 22... Qd6 {[%clk 0:02:38.6]} 23. Qb3 {[%clk 0:02:43.8]} 23...
Rb8 {[%clk 0:02:27.3]} 24. Qa3 {[%clk 0:02:43.1]} 24... Qd8 {[%clk 0:02:25.2]}
25. Qb3 {[%clk 0:02:43]} 25... Rc6 {[%clk 0:02:23.1]} 26. Ra2 {[%clk 0:02:42.1]}
26... Qc7 {[%clk 0:02:23.2]} 27. Qb4 {[%clk 0:02:35.9]} 27... Rc4 {[%clk
0:02:21.7]} 28. Qb3 {[%clk 0:02:36.1]} 28... b6 {[%clk 0:02:21.6]} 29. Qb5
{[%clk 0:02:28.4]} 29... Qc8 {[%clk 0:02:19.3]} 30. Qb3 {[%clk 0:02:21.7]} 30...
a6 {[%clk 0:02:19.1]} 31. Rea1 {[%clk 0:02:21.7]} 31... g5 {[%clk 0:02:16.5]}
32. Qd1 {[%clk 0:02:21]} 32... Qd8 {[%clk 0:02:13.8]} 33. Qe2 {[%clk 0:02:12.1]}
33... a5 {[%clk 0:02:10.4]} 34. Qc2 {[%clk 0:01:59.5]} 34... Rbc8 {[%clk
0:02:07.3]} 35. Qd2 {[%clk 0:01:55.4]} 35... Qf6 {[%clk 0:02:07.1]} 36. Re1
{[%clk 0:01:53.2]} 36... Qf5 {[%clk 0:01:57.4]} 37. Raa1 {[%clk 0:01:48.9]}
37... f6 {[%clk 0:01:54.7]} 38. Re3 {[%clk 0:01:48.4]} 38... Kf7 {[%clk
0:01:50.1]} 39. Qe2 {[%clk 0:01:47]} 39... Re8 {[%clk 0:01:42.1]} 40. Rf3 {[%clk
0:01:44.8]} 40... Qe4 {[%clk 0:01:40.3]} 41. Re3 {[%clk 0:01:42.8]} 41... Qf5
{[%clk 0:01:40]} 42. Rf3 {[%clk 0:01:43]} 42... Qh7 {[%clk 0:01:38.7]} 43. Re3
{[%clk 0:01:42.4]} 43... Qf5 {[%clk 0:01:21]} 1/2-1/2

[Event "*** Titled Tuesday Blitz"]
[Site "Chess.com"]
[Date "2021.04.06"]
[Round "3"]
[White "zala02"]
[Black "I_Enchev"]
[Result "0-1"]
[WhiteElo "2155"]
[BlackElo "2490"]
[TimeControl "180+1"]
[EndTime "10:26:12 PDT"]
[Termination "I_Enchev won by resignation"]

1. e4 {[%clk 0:03:00.9]} 1... c6 {[%clk 0:03:00.2]} 2. d4 {[%clk 0:02:58.9]}
2... d5 {[%clk 0:02:59.9]} 3. Nc3 {[%clk 0:02:59.1]} 3... dxe4 {[%clk
0:02:59.5]} 4. Nxe4 {[%clk 0:03:00]} 4... Nf6 {[%clk 0:03:00.1]} 5. Nxf6+ {[%clk
0:02:57.8]} 5... exf6 {[%clk 0:03:01]} 6. c3 {[%clk 0:02:52.7]} 6... Bd6 {[%clk
0:03:00.2]} 7. Bd3 {[%clk 0:02:52.4]} 7... O-O {[%clk 0:02:57.2]} 8. Ne2 {[%clk
0:02:52]} 8... Re8 {[%clk 0:02:57.3]} 9. Be3 {[%clk 0:02:49.2]} 9... Nd7 {[%clk
0:02:53.5]} 10. Qd2 {[%clk 0:02:49]} 10... Nf8 {[%clk 0:02:46.6]} 11. O-O-O
{[%clk 0:02:47.7]} 11... Qa5 {[%clk 0:02:45.9]} 12. Kb1 {[%clk 0:02:46.7]} 12...
Be6 {[%clk 0:02:45]} 13. c4 {[%clk 0:02:42]} 13... Bb4 {[%clk 0:02:39.4]} 14.
Qc2 {[%clk 0:02:40.4]} 14... b5 {[%clk 0:02:39.9]} 15. a3 {[%clk 0:02:23.8]}
15... bxc4 {[%clk 0:02:36]} 16. axb4 {[%clk 0:02:20]} 16... cxd3 {[%clk
0:02:36]} 17. bxa5 {[%clk 0:02:18.7]} 17... dxc2+ {[%clk 0:02:35.8]} 18. Kxc2
{[%clk 0:02:19.6]} 18... Rab8 {[%clk 0:02:32]} 19. Nc3 {[%clk 0:02:02.4]} 19...
Bb3+ {[%clk 0:02:30.8]} 20. Kd2 {[%clk 0:02:01.4]} 20... Bxd1 {[%clk 0:02:31.7]}
21. Nxd1 {[%clk 0:02:01.2]} 21... Ne6 {[%clk 0:02:29.7]} 22. h4 {[%clk
0:01:59.5]} 22... Red8 {[%clk 0:02:28.4]} 23. Kc3 {[%clk 0:01:57.6]} 23... Rb5
{[%clk 0:02:26.1]} 24. b4 {[%clk 0:01:57.1]} 24... Rbd5 {[%clk 0:02:25.4]} 25.
Nb2 {[%clk 0:01:52.1]} 25... Nxd4 {[%clk 0:02:21.2]} 26. Re1 {[%clk 0:01:45.6]}
26... Nb5+ {[%clk 0:02:18.9]} 27. Kc4 {[%clk 0:01:45.2]} 27... Re5 {[%clk
0:02:13.7]} 28. Rc1 {[%clk 0:01:27.6]} 28... Re4+ {[%clk 0:01:51.2]} 29. Kb3
{[%clk 0:01:27]} 29... Rd6 {[%clk 0:01:50.9]} 30. Nc4 {[%clk 0:01:19.3]} 30...
Rd3+ {[%clk 0:01:48.6]} 31. Kc2 {[%clk 0:01:07.1]} 31... Rc3+ {[%clk 0:01:48]}
32. Kb2 {[%clk 0:00:56.8]} 32... Rxc1 {[%clk 0:01:46.5]} 33. Bxc1 {[%clk
0:00:56.4]} 33... Rxc4 {[%clk 0:01:45.9]} 0-1

[Event "*** Titled Tuesday Blitz"]
[Site "Chess.com"]
[Date "2021.04.06"]
[Round "3"]
[White "jraosam"]
[Black "kinga2008"]
[Result "0-1"]
[WhiteElo "1857"]
[BlackElo "2279"]
[TimeControl "180+1"]
[EndTime "10:26:14 PDT"]
[Termination "kinga2008 won by resignation"]

1. c4 {[%clk 0:02:46.8]} 1... c5 {[%clk 0:02:59.5]} 2. e3 {[%clk 0:02:46.1]}
2... g6 {[%clk 0:02:59.1]} 3. d4 {[%clk 0:02:46.5]} 3... Bg7 {[%clk 0:02:59.6]}
4. d5 {[%clk 0:02:45.8]} 4... e6 {[%clk 0:02:59.6]} 5. d6 {[%clk 0:02:45.5]}
5... Nf6 {[%clk 0:02:59.4]} 6. Nc3 {[%clk 0:02:45.3]} 6... O-O {[%clk
0:02:59.1]} 7. Nf3 {[%clk 0:02:45.1]} 7... Nc6 {[%clk 0:02:57.1]} 8. Bd3 {[%clk
0:02:42.7]} 8... e5 {[%clk 0:02:56.8]} 9. O-O {[%clk 0:02:38.1]} 9... a6 {[%clk
0:02:50.2]} 10. Nd5 {[%clk 0:02:34.1]} 10... Nxd5 {[%clk 0:02:48]} 11. cxd5
{[%clk 0:02:35]} 11... Nb4 {[%clk 0:02:47.8]} 12. Bb1 {[%clk 0:02:31.6]} 12...
f5 {[%clk 0:02:21.1]} 13. a3 {[%clk 0:02:28.9]} 13... e4 {[%clk 0:02:21.2]} 14.
Ne1 {[%clk 0:02:24.9]} 14... Nd3 {[%clk 0:02:19.7]} 15. Nxd3 {[%clk 0:02:25.3]}
15... exd3 {[%clk 0:02:20.6]} 16. Bxd3 {[%clk 0:02:18.8]} 16... b5 {[%clk
0:02:20.4]} 17. f3 {[%clk 0:02:09.2]} 17... c4 {[%clk 0:02:19.3]} 18. Bc2 {[%clk
0:02:09.2]} 18... Qb6 {[%clk 0:02:19.1]} 19. Kh1 {[%clk 0:02:03]} 19... Qxd6
{[%clk 0:02:19.1]} 20. e4 {[%clk 0:02:01]} 20... Bb7 {[%clk 0:02:16.4]} 21. exf5
{[%clk 0:01:54.1]} 21... gxf5 {[%clk 0:02:14.4]} 22. Rb1 {[%clk 0:01:40.8]}
22... Qxd5 {[%clk 0:02:11.4]} 23. Qe2 {[%clk 0:01:39.4]} 23... Rae8 {[%clk
0:02:10.6]} 24. Qf2 {[%clk 0:01:39.3]} 24... Qd4 {[%clk 0:02:05.8]} 25. Qg3
{[%clk 0:01:37.8]} 25... Re2 {[%clk 0:02:01.7]} 26. Bd1 {[%clk 0:01:24]} 26...
Re6 {[%clk 0:02:00]} 27. Bf4 {[%clk 0:01:19.6]} 27... Rg6 {[%clk 0:01:51.3]} 28.
Qh4 {[%clk 0:01:16.3]} 28... Qd3 {[%clk 0:01:51.3]} 29. Ba4 {[%clk 0:00:59.9]}
29... bxa4 {[%clk 0:01:50.4]} 30. Rbd1 {[%clk 0:00:58.5]} 30... Qe2 {[%clk
0:01:43]} 31. g3 {[%clk 0:00:58.7]} 31... Bxf3+ {[%clk 0:01:42.2]} 0-1

[Event "*** Titled Tuesday Blitz"]
[Site "Chess.com"]
[Date "2021.04.06"]
[Round "3"]
[White "jens1102"]
[Black "yandry1996"]
[Result "1-0"]
[WhiteElo "2505"]
[BlackElo "2242"]
[TimeControl "180+1"]
[EndTime "10:26:15 PDT"]
[Termination "jens1102 won on time"]

1. e4 {[%clk 0:03:00.9]} 1... e5 {[%clk 0:02:58.4]} 2. Nf3 {[%clk 0:03:01]} 2...
Nf6 {[%clk 0:02:57.5]} 3. Nc3 {[%clk 0:03:00.5]} 3... Nc6 {[%clk 0:02:53.1]} 4.
Bb5 {[%clk 0:03:01.1]} 4... Bb4 {[%clk 0:02:46.6]} 5. O-O {[%clk 0:02:59.2]}
5... O-O {[%clk 0:02:40.8]} 6. d3 {[%clk 0:02:59.7]} 6... d6 {[%clk 0:02:40.2]}
7. Nd5 {[%clk 0:02:56.6]} 7... Nxd5 {[%clk 0:02:28.8]} 8. exd5 {[%clk
0:02:56.9]} 8... Ne7 {[%clk 0:02:13.4]} 9. c4 {[%clk 0:02:55.7]} 9... c6 {[%clk
0:02:05.9]} 10. dxc6 {[%clk 0:02:53.6]} 10... bxc6 {[%clk 0:02:06.8]} 11. Ba4
{[%clk 0:02:53.7]} 11... Bg4 {[%clk 0:02:04.6]} 12. Bg5 {[%clk 0:02:53.4]} 12...
f6 {[%clk 0:02:03.5]} 13. Be3 {[%clk 0:02:47.9]} 13... d5 {[%clk 0:01:58.3]} 14.
cxd5 {[%clk 0:02:46.1]} 14... cxd5 {[%clk 0:01:58.3]} 15. h3 {[%clk 0:02:44.9]}
15... Bh5 {[%clk 0:01:56]} 16. Rc1 {[%clk 0:02:40]} 16... Nf5 {[%clk 0:01:42.8]}
17. Bc6 {[%clk 0:02:27.4]} 17... Rc8 {[%clk 0:01:35.6]} 18. Qb3 {[%clk
0:02:25.7]} 18... Bxf3 {[%clk 0:01:27.7]} 19. gxf3 {[%clk 0:02:26.6]} 19... Ne7
{[%clk 0:01:15.6]} 20. Bb7 {[%clk 0:02:20.7]} 20... Rxc1 {[%clk 0:01:14.7]} 21.
Rxc1 {[%clk 0:02:21.6]} 21... Ba5 {[%clk 0:00:32]} 22. Rc5 {[%clk 0:02:13.4]}
22... Bb6 {[%clk 0:00:28.5]} 23. Bxd5+ {[%clk 0:02:12.3]} 23... Nxd5 {[%clk
0:00:26]} 24. Rxd5 {[%clk 0:02:12.2]} 24... Qc8 {[%clk 0:00:24.6]} 25. Rd8+
{[%clk 0:02:11.3]} 1-0